bitfinex-derivatives/quotes_SOLF0:USTF0_20260310
["timestamp","ask_amount","ask_price","bid_price","bid_amount"]
[1773135212949,10.321,87.191,87.15,3.3605663]
[1773135213153,1.95873901,87.191,87.15,3.3605663]
[1773135214351,10.322,87.182,87.16,3.3605663]
[1773135215251,10.323,87.175,87.14,3.3605663]
[1773135215749,3.5035179,87.174,87.131,13.48620673]
[1773135215957,10.324,87.17,87.131,13.48620673]
[1773135216145,10.324,87.17,87.14,3.3605663]
[1773135216547,10.324,87.17,87.131,13.48620673]
[1773135218755,10.325,87.16,87.131,13.48620673]
[1773135218961,3.5035179,87.174,87.131,13.48620673]
[1773135220060,13.89022635,87.159,87.111,13.48620673]
[1773135220261,3.56522635,87.159,87.12,3.3605663]
[1773135220460,3.56522635,87.159,87.13,3.3605663]
[1773135221566,10.325,87.157,87.121,13.48620673]
[1773135222359,3.56522635,87.159,87.121,13.48620673]
[1773135223358,13.89022635,87.159,87.121,13.48620673]
[1773135224155,3.47131911,87.177,87.14,16.84677303]
[1773135224753,3.47686492,87.19,87.15,3.3605663]
[1773135225451,10.322,87.181,87.15,3.3605663]
[1773135225655,3.47686492,87.19,87.14,16.84677303]
[1773135226356,10.323,87.174,87.14,16.84677303]
[1773135227461,3.54737296,87.204,87.16,3.3605663]
[1773135227661,3.54737296,87.199,87.15,16.84677303]
[1773135227855,3.54737296,87.199,87.15,13.48620673]
[1773135228055,10.323,87.177,87.14,3.3605663]
[1773135229156,10.323,87.177,87.14,16.84677303]
[1773135229563,10.323,87.177,87.14,16.85359464]
[1773135230162,10.324,87.17,87.14,16.85359464]
[1773135231466,10.323,87.178,87.14,16.85359464]
[1773135233260,3.55361812,87.187,87.14,13.48620673]
[1773135233461,3.55361812,87.187,87.14,16.85359464]
[1773135234357,10.323,87.173,87.14,16.85359464]
[1773135234563,3.05401493,87.175,87.13,3.36738791]
[1773135235260,10.325,87.158,87.13,3.36738791]
[1773135235663,10.325,87.158,87.127,13.9376358]
[1773135238566,10.325,87.158,87.13,3.36738791]
[1773135239467,3.23620834,87.189,87.13,17.30502371]
[1773135239668,3.24106924,87.187,87.14,3.36738791]
[1773135240066,3.24106924,87.187,87.13,17.30502371]
[1773135240363,10.323,87.172,87.13,17.30502371]
[1773135240569,10.323,87.172,87.092,10.0]
[1773135240570,3.24151703,87.203,87.15,17.30502371]
[1773135240765,12.14168475,87.202,87.15,17.30502371]
[1773135240969,20.636,87.22,87.14,3.36738791]
[1773135240970,3.25974801,87.184,87.14,3.36738791]
[1773135241465,3.25974801,87.184,87.141,13.9376358]
[1773135242367,10.324,87.171,87.141,13.9376358]
[1773135244765,10.324,87.164,87.141,13.9376358]
[1773135244966,3.25974801,87.184,87.15,3.36738791]
[1773135245371,10.323,87.173,87.141,13.9376358]
[1773135246467,10.324,87.166,87.141,13.9376358]
[1773135248468,10.325,87.159,87.126,14.6069441]
[1773135250874,10.326,87.153,87.126,14.6069441]
[1773135251582,10.325,87.16,87.126,14.6069441]
[1773135251782,3.4751229,87.159,87.115,14.6069441]
[1773135252478,3.47552957,87.143,87.09,1.99643739]
[1773135252777,3.36738791,87.14,87.09,17.97433201]
[1773135252981,3.47946643,87.156,87.11,17.97433201]
[1773135253179,10.326,87.147,87.11,17.97433201]
[1773135253581,10.326,87.147,87.11,14.6069441]
[1773135254184,10.326,87.147,87.11,17.97433201]
[1773135255788,10.327,87.141,87.11,3.36738791]
[1773135256879,10.327,87.141,87.101,14.6069441]
[1773135257480,10.326,87.15,87.111,14.6069441]
[1773135258882,3.84563983,87.176,87.13,17.97433201]
[1773135259090,3.84563983,87.176,87.14,3.36738791]
[1773135260490,10.324,87.167,87.13,17.97433201]
[1773135261083,4.1076155,87.166,87.117,14.6069441]
[1773135261389,4.1076155,87.179,87.131,14.6069441]
[1773135262490,10.324,87.165,87.131,14.6069441]
[1773135263492,10.323,87.175,87.15,3.36738791]
[1773135263888,10.323,87.175,87.141,14.6069441]
[1773135264996,10.322,87.184,87.15,17.97433201]
[1773135265795,10.321,87.192,87.15,17.97433201]
[1773135266190,10.321,87.192,87.16,3.36738791]
[1773135266686,10.322,87.185,87.16,3.36738791]
[1773135267895,10.322,87.185,87.15,17.97433201]
[1773135268397,10.322,87.185,87.15,14.6069441]
[1773135268693,10.323,87.177,87.15,14.6069441]
[1773135268897,4.20165745,87.189,87.14,3.36738791]
[1773135269297,4.20165745,87.189,87.14,17.97433201]
[1773135269799,9.00811488,87.199,87.151,14.6069441]
[1773135270001,3.98924537,87.204,87.151,14.6069441]
[1773135271301,3.98924537,87.204,87.16,3.36738791]
[1773135271498,10.322,87.186,87.16,3.36738791]
[1773135272399,10.321,87.194,87.16,3.36738791]
[1773135272705,3.98924537,87.204,87.16,3.36738791]
[1773135273496,10.321,87.196,87.16,3.36738791]
[1773135273697,3.98924537,87.204,87.16,3.36738791]
[1773135274106,3.98924537,87.204,87.151,14.6069441]
[1773135274697,10.321,87.196,87.16,3.36738791]
[1773135278712,10.322,87.188,87.151,14.6069441]
[1773135279609,14.18217411,87.188,87.151,14.6069441]
[1773135279809,10.322,87.182,87.151,14.6069441]
[1773135280006,3.86017411,87.188,87.15,3.36738791]
[1773135280312,3.86017411,87.188,87.14,3.36738791]
[1773135281513,10.323,87.176,87.14,3.36738791]
[1773135282213,10.323,87.176,87.15,3.36738791]
[1773135282811,10.322,87.185,87.15,18.21323241]
[1773135283612,10.321,87.192,87.16,18.21323241]
[1773135285808,10.321,87.192,87.16,14.8458445]
[1773135286012,10.321,87.192,87.16,18.21323241]
[1773135287006,10.322,87.186,87.16,18.21323241]
[1773135287218,10.322,87.186,87.16,14.8458445]
[1773135287414,10.322,87.186,87.15,3.36738791]
[1773135287614,10.322,87.186,87.15,18.21323241]
[1773135288615,10.323,87.179,87.15,18.21323241]
[1773135291316,10.322,87.186,87.16,3.36738791]
[1773135291715,10.322,87.186,87.16,3.36629297]
[1773135292618,10.323,87.179,87.15,14.8458445]
[1773135292917,10.323,87.179,87.15,18.21213747]
[1773135294922,10.322,87.186,87.16,3.36629297]
[1773135296923,10.322,87.186,87.16,16.97201293]
[1773135300722,10.321,87.193,87.16,16.97201293]
[1773135302725,4.56565511,87.19,87.146,13.60571996]
[1773135302927,4.56565511,87.19,87.15,3.36629297]
[1773135303427,10.323,87.18,87.15,3.36629297]
[1773135304226,3.659364,87.168,87.12,17.28598998]
[1773135304431,3.659364,87.168,87.131,13.91969701]
[1773135304723,3.6615255,87.189,87.131,13.91969701]
[1773135305024,3.6615255,87.189,87.15,3.36629297]
[1773135305527,10.321,87.194,87.16,17.28598998]
[1773135310027,2.97711902,87.169,87.112,13.91969701]
[1773135310233,2.97711902,87.183,87.131,13.91969701]
[1773135310627,2.97711902,87.183,87.14,3.36629297]
[1773135310831,2.97711902,87.183,87.14,17.28598998]
[1773135312228,10.322,87.184,87.15,3.36629297]
[1773135312530,10.322,87.184,87.15,13.91969701]
[1773135312729,10.322,87.184,87.15,17.28598998]
[1773135312932,10.322,87.184,87.15,13.91969701]
[1773135317337,10.323,87.173,87.15,13.91969701]
[1773135317638,2.73502023,87.194,87.15,13.91969701]
[1773135317834,10.322,87.182,87.15,17.28598998]
[1773135318135,2.73690893,87.207,87.15,17.28598998]
[1773135318435,2.73690893,87.205,87.161,13.91969701]
[1773135318637,2.73690893,87.203,87.161,13.91969701]
[1773135318934,2.73864928,87.201,87.161,13.91969701]
[1773135319133,2.74958456,87.199,87.161,13.91969701]
[1773135319337,10.321,87.19,87.148,13.91969701]
[1773135319537,10.321,87.19,87.15,17.28598998]
[1773135320534,2.74958456,87.197,87.15,13.91969701]
[1773135320739,2.74958456,87.197,87.16,3.36629297]
[1773135321334,10.321,87.196,87.16,3.36629297]
[1773135321541,2.74958456,87.197,87.16,3.36629297]
[1773135322140,10.321,87.189,87.16,3.36629297]
[1773135323642,10.321,87.189,87.15,17.28598998]
[1773135325348,2.74958456,87.197,87.15,17.28598998]
[1773135325349,10.322,87.183,87.15,17.28598998]
[1773135327047,10.321,87.191,87.15,17.28598998]
[1773135328243,10.322,87.184,87.15,17.28598998]
[1773135328745,10.321,87.191,87.15,17.28598998]
[1773135331246,1.94237864,87.219,87.149,14.01070558]
[1773135331451,1.94237864,87.209,87.15,17.37699855]
[1773135331653,1.94237864,87.207,87.15,17.37699855]
[1773135331955,3.36629297,87.21,87.15,17.37699855]
[1773135331956,10.321,87.192,87.15,17.37699855]
[1773135332256,1.94397028,87.194,87.15,17.37699855]
[1773135332452,1.94397028,87.194,87.15,14.01070558]
[1773135332648,14.77291469,87.189,87.13,3.36629297]
[1773135333052,10.324,87.17,87.13,3.36629297]
[1773135333253,10.324,87.17,87.14,3.36629297]
[1773135334552,10.324,87.17,87.14,17.03348719]
[1773135334753,10.323,87.178,87.14,17.03348719]
[1773135335553,14.46998423,87.17,87.128,10.329]
[1773135336153,14.46998423,87.168,87.122,13.66719422]
[1773135337256,14.46998423,87.168,87.13,17.03348719]
[1773135337654,10.324,87.167,87.13,17.03348719]
[1773135337959,10.324,87.167,87.13,13.66719422]
[1773135338159,10.324,87.167,87.13,17.03348719]
[1773135338757,10.324,87.167,87.13,13.66719422]
[1773135338958,10.325,87.162,87.13,13.66719422]
[1773135339154,14.46998423,87.166,87.12,3.36629297]
[1773135339355,14.46998423,87.166,87.118,13.66719422]
[1773135339658,14.46998423,87.159,87.11,3.36629297]
[1773135339851,14.46998423,87.159,87.105,13.66719422]
[1773135340451,14.46998423,87.159,87.082,10.0]
[1773135340452,14.46998423,87.159,87.12,3.36629297]
[1773135341049,14.46998423,87.159,87.121,13.66719422]
[1773135341249,10.324,87.165,87.121,13.66719422]
[1773135341250,10.324,87.165,87.13,3.36629297]
[1773135341460,10.324,87.165,87.131,13.66719422]
[1773135342257,10.323,87.174,87.15,3.36629297]
[1773135345564,10.323,87.174,87.14,17.03348719]
[1773135347064,10.323,87.174,87.15,3.36629297]
[1773135347363,10.322,87.182,87.15,3.36629297]
[1773135348460,10.321,87.191,87.16,3.36629297]
[1773135348663,14.46998423,87.19,87.15,3.36629297]
[1773135349666,14.46998423,87.19,87.14,13.66719422]
[1773135349866,14.46998423,87.19,87.15,3.36629297]
[1773135350468,10.322,87.184,87.15,3.36629297]
[1773135351666,10.322,87.184,87.15,3.3667007]
[1773135352871,10.322,87.184,87.15,18.22373341]
[1773135354171,13.85717695,87.202,87.17,3.3667007]
[1773135354377,13.85717695,87.199,87.15,3.3667007]
[1773135354678,13.85717695,87.18,87.14,3.3667007]
[1773135355466,10.323,87.176,87.14,3.3667007]
[1773135357074,10.72116528,87.216,87.105,20.663]
[1773135357075,10.322,87.184,87.15,18.22373341]
[1773135357471,8.95272534,87.209,87.17,18.22373341]
[1773135357775,13.85717695,87.216,87.17,18.22373341]
[1773135357776,10.32,87.199,87.17,18.22373341]
[1773135357974,10.32,87.199,87.17,14.85703271]
[1773135358275,13.85717695,87.216,87.18,3.3667007]
[1773135358780,13.85717695,87.206,87.16,3.3667007]
[1773135359072,10.318,87.215,87.171,14.85703271]
[1773135359267,10.318,87.215,87.18,3.3667007]
[1773135359468,10.318,87.215,87.171,14.85703271]
[1773135359976,10.318,87.215,87.18,3.3667007]
[1773135360478,13.85717695,87.219,87.18,3.3667007]
[1773135360972,10.318,87.217,87.18,3.3667007]
[1773135361172,24.17517695,87.217,87.18,3.3667007]
[1773135361477,13.85717695,87.252,87.21,18.22373341]
[1773135361676,13.85717695,87.252,87.22,3.3667007]
[1773135362166,13.85717695,87.252,87.21,18.22373341]
[1773135363077,13.85717695,87.219,87.17,3.3667007]
[1773135363274,20.626,87.264,87.19,3.3667007]
[1773135363275,13.85717695,87.234,87.19,3.3667007]
[1773135363780,10.317,87.223,87.181,14.85703271]
[1773135364076,10.317,87.223,87.19,3.3667007]
[1773135364472,10.316,87.231,87.19,3.3667007]
[1773135366377,10.317,87.224,87.19,3.3667007]
[1773135366778,10.315,87.241,87.21,3.3667007]
[1773135366981,14.8510877,87.269,87.23,3.3667007]
[1773135367171,14.8510877,87.269,87.22,3.3667007]
[1773135367373,25.17395895,87.261,87.22,3.3667007]
[1773135367570,14.86095895,87.261,87.211,14.4819295]
[1773135367874,14.86095895,87.261,87.23,3.3667007]
[1773135368076,10.312,87.265,87.23,3.3667007]
[1773135368279,14.86863181,87.269,87.22,3.3667007]
[1773135368578,10.314,87.25,87.22,3.3667007]
[1773135368778,14.86863181,87.269,87.22,3.3667007]
[1773135370474,10.314,87.256,87.23,3.3667007]
[1773135370669,10.314,87.256,87.22,3.3667007]
[1773135371173,10.313,87.264,87.22,3.3667007]
[1773135371372,10.313,87.264,87.23,3.3667007]
[1773135371982,14.86863181,87.269,87.22,3.3667007]
[1773135372977,10.315,87.243,87.21,14.4819295]
[1773135373188,10.315,87.243,87.2,3.3667007]
[1773135373379,15.06145713,87.249,87.2,3.3667007]
[1773135373585,10.316,87.236,87.196,14.4819295]
[1773135374082,15.06145713,87.249,87.2,17.8486302]
[1773135375276,10.316,87.238,87.2,17.8486302]
[1773135375678,18.42815783,87.23,87.187,14.4819295]
[1773135375878,15.06145713,87.219,87.171,14.4819295]
[1773135376778,10.318,87.218,87.172,10.323]
[1773135376985,10.318,87.218,87.18,3.3667007]
[1773135377185,15.06145713,87.234,87.19,3.3667007]
[1773135378084,15.06145713,87.249,87.2,3.3667007]
[1773135378289,15.06145713,87.249,87.21,3.3667007]
[1773135378686,10.315,87.247,87.21,3.3667007]
[1773135378995,3.3667007,87.27,87.21,3.3667007]
[1773135378996,15.06145713,87.263,87.21,3.3667007]
[1773135379185,15.06145713,87.263,87.22,3.3667007]
[1773135379886,20.619,87.292,87.21,3.3667007]
[1773135379887,15.06145713,87.259,87.21,3.3667007]
[1773135380291,10.315,87.247,87.21,3.3667007]
[1773135380789,10.315,87.247,87.203,14.4819295]
[1773135380790,10.314,87.255,87.22,3.3667007]
[1773135380994,10.314,87.255,87.23,3.3667007]
[1773135381395,10.314,87.248,87.22,3.3667007]
[1773135381694,10.314,87.248,87.21,3.3667007]
[1773135382098,10.313,87.256,87.22,3.3667007]
[1773135383390,10.314,87.249,87.22,3.3667007]
[1773135383592,10.314,87.249,87.21,3.3667007]
[1773135383791,10.315,87.242,87.21,14.4819295]
[1773135383993,15.06145713,87.275,87.23,3.3667007]
[1773135384295,10.313,87.264,87.23,3.3667007]
[1773135384600,10.313,87.264,87.22,17.8486302]
[1773135385102,15.06145713,87.249,87.173,14.4819295]
[1773135385300,15.06145713,87.263,87.22,3.3667007]
[1773135385596,162.31660082,87.32,87.19,3.3667007]
[1773135385597,15.06145713,87.239,87.19,3.3667007]
[1773135385792,15.06145713,87.239,87.2,3.3667007]
[1773135387001,15.06145713,87.239,87.202,10.32]
[1773135387206,15.06145713,87.239,87.21,3.3667007]
[1773135387399,15.06145713,87.239,87.2,3.3667007]
[1773135388198,10.317,87.226,87.2,3.3667007]
[1773135388403,15.06145713,87.239,87.2,3.3667007]
[1773135389205,15.06145713,87.236,87.2,3.3667007]
[1773135390404,10.316,87.234,87.2,3.3667007]
[1773135391003,10.316,87.231,87.19,17.8486302]
[1773135391906,25.37745713,87.231,87.19,17.8486302]
[1773135392401,15.06145713,87.231,87.19,17.8486302]
[1773135392607,15.06145713,87.231,87.19,3.3667007]
[1773135393005,15.06145713,87.222,87.18,3.3667007]
[1773135393206,15.06145713,87.219,87.171,10.323]
[1773135393710,13.97279055,87.217,87.17,3.3667007]
[1773135394105,13.97279055,87.217,87.162,14.4819295]
[1773135394301,13.97279055,87.217,87.17,3.3667007]
[1773135394607,10.319,87.206,87.17,3.3667007]
[1773135395112,13.97279055,87.205,87.17,3.3667007]
[1773135395506,13.97279055,87.205,87.162,14.4819295]
[1773135396503,10.32,87.204,87.162,14.4819295]
[1773135397309,10.32,87.2,87.162,14.4819295]
[1773135397513,13.97279055,87.199,87.16,3.3667007]
[1773135397811,13.97279055,87.199,87.15,3.3667007]
[1773135398011,13.97279055,87.196,87.15,3.3667007]
[1773135398517,24.29379055,87.19,87.15,3.3667007]
[1773135400015,13.97279055,87.19,87.146,15.16201377]
[1773135400213,13.97279055,87.19,87.15,3.3667007]
[1773135400416,13.97279055,87.19,87.15,18.52871447]
[1773135400914,10.32,87.2,87.15,18.52871447]
[1773135401107,10.32,87.2,87.16,18.52871447]
[1773135401414,10.32,87.2,87.17,3.3667007]
[1773135401714,13.97279055,87.203,87.17,3.3667007]
[1773135401909,10.319,87.209,87.17,3.3667007]
[1773135402316,10.319,87.209,87.16,18.52871447]
[1773135402816,24.29179055,87.209,87.16,18.52871447]
[1773135403517,24.29179055,87.209,87.17,3.3667007]
[1773135403814,10.32,87.202,87.17,3.3667007]
[1773135404614,13.97279055,87.223,87.171,15.16201377]
[1773135404816,13.97279055,87.223,87.19,3.3667007]
[1773135405317,10.318,87.22,87.18,18.52871447]
[1773135405515,13.97279055,87.223,87.17,3.3667007]
[1773135405816,13.97279055,87.244,87.2,3.3667007]
[1773135406122,13.97279055,87.239,87.191,15.16201377]
[1773135406319,13.97279055,87.239,87.19,3.3667007]
[1773135407416,10.317,87.224,87.19,3.3667007]
[1773135407915,10.317,87.224,87.18,3.3667007]
[1773135409517,14.69628243,87.223,87.178,15.16201377]
[1773135409825,14.69628243,87.223,87.17,3.3667007]
[1773135410020,14.69628243,87.223,87.18,3.3667007]
[1773135411326,10.319,87.211,87.18,3.3667007]
[1773135411524,10.319,87.211,87.18,3.36455574]
[1773135411730,14.69628243,87.223,87.17,3.36455574]
[1773135412226,10.32,87.203,87.17,3.36455574]
[1773135412426,10.32,87.203,87.164,15.15419677]
[1773135412626,25.01528243,87.211,87.17,3.36455574]
[1773135412827,25.01528243,87.211,87.132,34.42]
[1773135412828,14.69628243,87.225,87.19,3.36455574]
[1773135413430,14.69628243,87.225,87.181,15.15419677]
[1773135414429,10.318,87.221,87.181,15.15419677]
[1773135414829,14.69628243,87.221,87.17,3.36455574]
[1773135416125,14.69628243,87.219,87.17,3.36455574]
[1773135416321,10.319,87.206,87.17,3.36455574]
[1773135416520,14.69628243,87.219,87.18,3.36455574]
[1773135416731,14.69628243,87.219,87.17,3.36455574]
[1773135417326,10.319,87.21,87.17,3.36455574]
[1773135417522,14.69628243,87.219,87.17,3.36455574]
[1773135418733,14.69628243,87.219,87.176,10.323]
[1773135419835,14.69628243,87.219,87.172,10.323]
[1773135420328,14.69628243,87.219,87.185,10.322]
[1773135420632,14.69628243,87.219,87.17,18.51875251]
[1773135420833,14.69628243,87.219,87.17,15.15419677]
[1773135421733,14.69628243,87.219,87.17,18.51875251]
[1773135422135,14.69628243,87.219,87.176,10.323]
[1773135422335,14.69628243,87.219,87.17,18.51875251]
[1773135422536,14.69628243,87.232,87.2,3.36455574]
[1773135423029,14.69628243,87.232,87.19,18.51875251]
[1773135423226,14.69628243,87.232,87.2,3.36455574]
[1773135423737,14.69628243,87.232,87.19,15.15419677]
[1773135423738,14.69628243,87.232,87.194,10.321]
[1773135426941,15.45166409,87.248,87.208,10.319]
[1773135427139,15.45166409,87.262,87.22,3.36455574]
[1773135427339,15.45166409,87.262,87.21,3.36455574]
[1773135427930,15.45166409,87.26,87.202,15.44804622]
[1773135428137,15.45166409,87.26,87.21,3.36455574]
[1773135428630,15.45166409,87.258,87.21,3.36455574]
[1773135429634,15.45166409,87.326,87.253,15.44804622]
[1773135429835,160.16,87.409,87.221,34.42]
[1773135429836,15.45166409,87.355,87.3,3.36455574]
[1773135430035,15.45166409,87.355,87.31,3.36455574]
[1773135430840,15.45166409,87.349,87.29,3.36455574]
[1773135431041,15.45166409,87.349,87.31,3.36455574]
[1773135431843,15.45166409,87.349,87.282,25.75804622]
[1773135432042,15.45166409,87.349,87.29,3.36455574]
[1773135432443,0.0005016,87.356,87.34,3.36455574]
[1773135432747,15.45166409,87.419,87.35,18.81260196]
[1773135433044,15.45166409,87.419,87.38,3.36455574]
[1773135433636,15.45166409,87.419,87.37,10.3]
[1773135436446,15.45166409,87.436,87.37,10.3]
[1773135436846,15.45166409,87.436,87.357,10.301]
[1773135437042,10.293,87.432,87.35,15.44804622]
[1773135437347,15.45166409,87.431,87.35,15.44804622]
[1773135437745,15.45166409,87.417,87.35,15.44804622]
[1773135438051,15.45166409,87.417,87.339,10.304]
[1773135438750,15.45166409,87.415,87.339,10.304]
[1773135439250,15.45166409,87.399,87.331,15.44804622]
[1773135440246,15.45166409,87.399,87.322,10.306]
[1773135440456,15.45166409,87.399,87.254,20.628]
[1773135440457,15.45166409,87.386,87.307,10.307]
[1773135440952,15.45166409,87.386,87.307,25.75504622]
[1773135441148,15.45166409,87.379,87.312,10.307]
[1773135441852,15.45166409,87.377,87.312,10.307]
[1773135442254,15.45166409,87.377,87.313,15.44804622]
[1773135443454,9.0,87.37,87.313,15.44804622]
[1773135443655,9.0,87.37,87.317,10.306]
[1773135443856,9.0,87.37,87.318,15.44804622]
[1773135445158,9.0,87.37,87.323,10.306]
[1773135445454,9.0,87.37,87.31,8.97195945]
[1773135445455,9.0,87.37,87.324,15.44804622]
[1773135445655,9.0,87.37,87.327,10.305]
[1773135446257,9.0,87.37,87.324,15.44804622]
[1773135447360,9.0,87.37,87.324,25.75304622]
[1773135449457,15.45166409,87.369,87.305,15.44804622]
[1773135450059,9.0,87.37,87.319,15.44804622]
[1773135450561,9.0,87.37,87.334,10.304]
[1773135451457,9.0,87.37,87.319,15.44804622]
[1773135451958,15.45166409,87.385,87.319,15.44804622]
[1773135452368,15.45166409,87.385,87.338,10.304]
[1773135452560,15.45166409,87.385,87.319,15.44804622]
[1773135452859,15.45166409,87.372,87.319,15.44804622]
[1773135453161,15.45166409,87.372,87.317,10.306]
[1773135454261,14.78943051,87.37,87.307,10.307]
[1773135454966,14.78943051,87.359,87.307,10.307]
[1773135456160,10.302,87.358,87.309,10.307]
[1773135456363,9.0,87.36,87.308,14.77093676]
[1773135456867,14.78943051,87.372,87.308,14.77093676]
[1773135457567,14.78943051,87.372,87.326,10.305]
[1773135462966,14.78943051,87.372,87.333,10.304]
[1773135464275,14.78943051,87.37,87.323,10.305]
[1773135464672,9.0,87.36,87.323,10.305]
[1773135465068,9.0,87.36,87.308,14.77093676]
[1773135465275,14.78943051,87.35,87.289,14.77093676]
[1773135465671,14.78943051,87.35,87.303,10.308]
[1773135465872,14.78943051,87.35,87.262,34.42]
[1773135465873,14.78943051,87.346,87.274,14.77093676]
[1773135467275,14.78943051,87.343,87.288,10.31]
[1773135467672,14.78943051,87.343,87.274,14.77093676]
[1773135467873,17.97195945,87.36,87.296,10.309]
[1773135467874,14.78943051,87.34,87.296,10.309]
[1773135468269,14.78943051,87.34,87.274,14.77093676]
[1773135469478,14.78943051,87.338,87.286,10.31]
[1773135469884,14.78943051,87.338,87.274,14.77093676]
[1773135470282,14.78943051,87.338,87.301,10.308]
[1773135471786,10.304,87.337,87.293,10.309]
[1773135474187,14.78943051,87.338,87.289,14.47890659]
[1773135474188,14.78943051,87.338,87.3,10.308]
[1773135474481,9.0,87.36,87.323,10.305]
[1773135474686,15.6907089,87.367,87.317,14.47890659]
[1773135474981,15.6907089,87.367,87.326,10.305]
[1773135475285,15.6907089,87.367,87.317,14.47890659]
[1773135475676,15.6907089,87.367,87.32,3.35300404]
[1773135476181,10.301,87.361,87.317,14.47890659]
[1773135476389,10.301,87.361,87.32,3.35300404]
[1773135476881,25.9917089,87.361,87.32,3.35300404]
[1773135477082,25.9917089,87.361,87.272,20.624]
[1773135477083,19.04371294,87.36,87.3,17.83191063]
[1773135477275,19.04371294,87.36,87.31,3.35300404]
[1773135477276,15.6907089,87.36,87.31,3.35300404]
[1773135477679,9.0,87.35,87.3,14.47890659]
[1773135478584,9.0,87.35,87.311,10.307]
[1773135479685,10.303,87.349,87.3,14.47890659]
[1773135480188,15.6907089,87.36,87.3,14.47890659]
[1773135480784,15.6907089,87.356,87.309,10.307]
[1773135482880,9.0,87.35,87.309,10.307]
[1773135483584,15.76455368,87.349,87.301,10.308]
[1773135484389,15.76455368,87.345,87.301,10.308]
[1773135485085,15.76455368,87.345,87.308,10.307]
[1773135485292,9.0,87.35,87.308,10.307]
[1773135488094,15.76455368,87.348,87.286,15.65571159]
[1773135489394,15.76455368,87.341,87.29,10.309]
[1773135490492,10.304,87.34,87.295,10.309]
[1773135491690,10.303,87.347,87.303,15.65571159]
[1773135492594,9.0,87.35,87.303,15.65571159]
[1773135492799,15.76455368,87.374,87.311,15.65571159]
[1773135493589,15.76455368,87.374,87.329,10.305]
[1773135493789,15.76455368,87.374,87.311,15.65571159]
[1773135494091,15.76455368,87.372,87.321,10.306]
[1773135494598,15.76455368,87.367,87.296,15.65571159]
[1773135494891,15.76455368,87.367,87.311,15.65571159]
[1773135496496,15.76455368,87.367,87.319,15.65571159]
[1773135496497,10.301,87.365,87.319,15.65571159]
[1773135497598,15.76455368,87.367,87.322,10.306]
[1773135497900,15.76455368,87.367,87.323,15.65571159]
[1773135499305,15.76455368,87.365,87.321,10.306]
[1773135499603,15.76455368,87.365,87.31,19.00956413]
[1773135500202,15.76455368,87.362,87.312,10.307]
[1773135500506,15.76455368,87.362,87.32,3.35385254]
[1773135501402,10.301,87.36,87.32,3.35385254]
[1773135502309,26.06555368,87.36,87.312,10.307]
[1773135504302,26.06555368,87.36,87.32,3.35385254]
[1773135504803,26.06555368,87.36,87.312,10.307]
[1773135505003,26.06555368,87.36,87.32,3.35385254]
[1773135505912,15.76455368,87.359,87.32,3.35385254]
[1773135509415,10.302,87.357,87.32,3.35385254]
[1773135509915,3.35385254,87.38,87.321,15.65571159]
[1773135510211,10.302,87.357,87.32,3.35385254]
[1773135510510,15.76455368,87.365,87.32,3.35385254]
[1773135511016,15.76455368,87.365,87.308,15.65571159]
[1773135511213,15.76455368,87.365,87.289,20.49448346]
[1773135511214,10.303,87.343,87.297,15.65571159]
[1773135511514,15.76455368,87.363,87.32,3.35385254]
[1773135511812,15.76455368,87.359,87.31,3.35385254]
[1773135512810,26.06755368,87.349,87.31,3.35385254]
[1773135513114,9.0,87.35,87.32,3.35385254]
[1773135514906,10.302,87.35,87.311,15.65571159]
[1773135515511,15.10109276,87.349,87.311,15.65571159]
[1773135515716,15.10109276,87.349,87.31,3.35385254]
[1773135515917,15.10109276,87.339,87.283,14.5168348]
[1773135516118,15.10109276,87.339,87.3,3.35385254]
[1773135516317,15.10109276,87.339,87.3,17.87068734]
[1773135516617,20.598,87.382,87.3,17.87068734]
[1773135516618,10.303,87.349,87.32,3.35385254]
[1773135516817,15.10109276,87.357,87.3,17.87068734]
[1773135517014,10.304,87.334,87.3,17.87068734]
[1773135517213,15.10109276,87.333,87.29,3.35385254]
[1773135517406,15.10109276,87.333,87.284,24.8268348]
[1773135517613,15.10109276,87.333,87.29,3.35385254]
[1773135517819,15.10109276,87.333,87.284,14.5168348]